[Event "Titled Tuesday Blitz November 07 Late 2023"]
[White "Haitin, Ilja"]
[Black "Mesa Cruz, Juan Carlos"]
[WhiteFideId "4501764"]
[BlackFideId "6423400"]
[WhiteElo "2413"]
[BlackElo "2296"]
[Result "0-1"]
[Round "7"]
[TimeControl "180+1"]
[Date "2023.11.07"]
[WhiteClock "0:00:00"]
[BlackClock "0:00:15"]
[Board "102"]

1. Nf3 {[%clk 0:02:44]}  d5 {[%clk 0:02:59]} 2. g3 {[%clk 0:02:43]}  Nf6 {[%clk 0:02:59]} 3. Bg2 {[%clk 0:02:43]}  e6 {[%clk 0:03:00]} 4. O-O {[%clk 0:02:43]}  Be7 {[%clk 0:03:00]} 5. c4 {[%clk 0:02:44]}  O-O {[%clk 0:03:00]} 6. b3 {[%clk 0:02:44]}  d4 {[%clk 0:03:00]} 7. e3 {[%clk 0:02:44]}  c5 {[%clk 0:03:00]} 8. exd4 {[%clk 0:02:41]}  cxd4 {[%clk 0:02:59]} 9. Ne5 {[%clk 0:02:42]}  Nfd7 {[%clk 0:02:57]} 10. Nxd7 {[%clk 0:02:41]}  Qxd7 {[%clk 0:02:47]} 11. d3 {[%clk 0:02:41]}  a5 {[%clk 0:02:46]} 12. Ba3 {[%clk 0:02:42]}  Bb4 {[%clk 0:02:42]} 13. Bxb4 {[%clk 0:02:24]}  axb4 {[%clk 0:02:42]} 14. Qd2 {[%clk 0:02:23]}  Qd6 {[%clk 0:02:36]} 15. a4 {[%clk 0:01:55]}  bxa3 {[%clk 0:02:30]} 16. b4 {[%clk 0:01:53]}  a2 {[%clk 0:02:30]} 17. Rxa2 {[%clk 0:01:53]}  Rxa2 {[%clk 0:02:29]} 18. Qxa2 {[%clk 0:01:54]}  Qxb4 {[%clk 0:02:29]} 19. Qa3 {[%clk 0:01:48]}  Qxa3 {[%clk 0:02:28]} 20. Nxa3 {[%clk 0:01:49]}  Na6 {[%clk 0:02:28]} 21. Rb1 {[%clk 0:01:43]}  Nc5 {[%clk 0:02:27]} 22. Bf1 {[%clk 0:01:42]}  Bd7 {[%clk 0:02:19]} 23. f4 {[%clk 0:01:38]}  Ra8 {[%clk 0:02:08]} 24. Nc2 {[%clk 0:01:35]}  Ra2 {[%clk 0:01:37]} 25. Nxd4 {[%clk 0:01:33]}  Rd2 {[%clk 0:01:37]} 26. Nb3 {[%clk 0:01:01]}  Nxb3 {[%clk 0:01:36]} 27. Rxb3 {[%clk 0:01:00]}  Bc6 {[%clk 0:01:37]} 28. Ra3 {[%clk 0:00:27]}  Kf8 {[%clk 0:01:36]} 29. Ra8+ {[%clk 0:00:25]}  Ke7 {[%clk 0:01:36]} 30. Rg8 {[%clk 0:00:25]}  Kf6 {[%clk 0:01:36]} 31. Rd8 {[%clk 0:00:22]}  h6 {[%clk 0:01:27]} 32. d4 {[%clk 0:00:21]}  g5 {[%clk 0:01:25]} 33. fxg5+ {[%clk 0:00:20]}  hxg5 {[%clk 0:01:26]} 34. Rd6 {[%clk 0:00:19]}  Be4 {[%clk 0:01:25]} 35. Rd7 {[%clk 0:00:17]}  Kg6 {[%clk 0:01:15]} 36. Bh3 {[%clk 0:00:14]}  f5 {[%clk 0:01:11]} 37. Bf1 {[%clk 0:00:11]}  Kh5 {[%clk 0:00:37]} 38. c5 {[%clk 0:00:10]}  Kg4 {[%clk 0:00:29]} 39. Bc4 {[%clk 0:00:09]}  Kf3 {[%clk 0:00:18]} 40. Bf1 {[%clk 0:00:09]}  Rd1 {[%clk 0:00:16]} 41. h4 {[%clk 0:00:01]}  Kxg3 {[%clk 0:00:16]} 42. hxg5 {[%clk 0:00:00]}  Bg2 {[%clk 0:00:15]} 0-1


[Site "https://www.chess.com"]

[Event "Titled Tuesday Blitz November 07 Late 2023"]
[White "Belanoff, Ted"]
[Black "Carrasco Miranda, Andres"]
[WhiteFideId "2070588"]
[BlackFideId "3405990"]
[WhiteElo "2292"]
[BlackElo "2410"]
[Result "0-1"]
[Round "7"]
[TimeControl "180+1"]
[Date "2023.11.07"]
[WhiteClock "0:00:20"]
[BlackClock "0:01:27"]
[Board "103"]

1. b4 {[%clk 0:01:33]}  e5 {[%clk 0:02:46]} 2. Bb2 {[%clk 0:01:32]}  Bxb4 {[%clk 0:02:44]} 3. Bxe5 {[%clk 0:01:32]}  Nf6 {[%clk 0:02:44]} 4. Nf3 {[%clk 0:01:31]}  Nc6 {[%clk 0:02:44]} 5. Bb2 {[%clk 0:01:27]}  d5 {[%clk 0:02:44]} 6. e3 {[%clk 0:01:28]}  O-O {[%clk 0:02:43]} 7. Bb5 {[%clk 0:01:27]}  Bg4 {[%clk 0:02:36]} 8. h3 {[%clk 0:01:17]}  Bh5 {[%clk 0:02:35]} 9. Bxc6 {[%clk 0:01:14]}  bxc6 {[%clk 0:02:34]} 10. c3 {[%clk 0:01:11]}  Bd6 {[%clk 0:02:30]} 11. Qa4 {[%clk 0:01:10]}  Rb8 {[%clk 0:02:29]} 12. Ba3 {[%clk 0:01:10]}  Bxf3 {[%clk 0:02:23]} 13. gxf3 {[%clk 0:01:10]}  c5 {[%clk 0:02:20]} 14. Rg1 {[%clk 0:01:03]}  c4 {[%clk 0:02:19]} 15. Bxd6 {[%clk 0:00:58]}  Qxd6 {[%clk 0:02:20]} 16. Qxa7 {[%clk 0:00:57]}  c5 {[%clk 0:02:14]} 17. Qa3 {[%clk 0:00:50]}  Ra8 {[%clk 0:02:00]} 18. Qc1 {[%clk 0:00:50]}  Nd7 {[%clk 0:02:00]} 19. a4 {[%clk 0:00:49]}  Ne5 {[%clk 0:02:00]} 20. Ke2 {[%clk 0:00:46]}  d4 {[%clk 0:01:42]} 21. Kf1 {[%clk 0:00:28]}  Nd3 {[%clk 0:01:35]} 22. Qa3 {[%clk 0:00:27]}  Qh2 {[%clk 0:01:32]} 23. Rg2 {[%clk 0:00:22]}  Qh1+ {[%clk 0:01:27]} 24. Rg1 {[%clk 0:00:23]}  Qxf3 {[%clk 0:01:27]} 25. Rg2 {[%clk 0:00:20]}  Qd1# {[%clk 0:01:27]} 0-1


[Site "https://www.chess.com"]

[Event "Titled Tuesday Blitz November 07 Late 2023"]
[White "Dodaro, Mattia"]
[Black "PapaieDudu"]
[WhiteFideId "28583400"]
[WhiteElo "2259"]
[BlackElo "2378"]
[Result "0-1"]
[Round "7"]
[TimeControl "180+1"]
[Date "2023.11.07"]
[WhiteClock "0:00:38"]
[BlackClock "0:00:58"]
[Board "106"]

1. d4 {[%clk 0:03:00]}  d5 {[%clk 0:03:00]} 2. c4 {[%clk 0:02:54]}  e6 {[%clk 0:03:00]} 3. Nf3 {[%clk 0:02:54]}  Nf6 {[%clk 0:03:00]} 4. Nc3 {[%clk 0:02:55]}  a6 {[%clk 0:03:00]} 5. e3 {[%clk 0:02:56]}  dxc4 {[%clk 0:03:00]} 6. Bxc4 {[%clk 0:02:56]}  b5 {[%clk 0:03:01]} 7. Bb3 {[%clk 0:02:56]}  c5 {[%clk 0:03:01]} 8. O-O {[%clk 0:02:57]}  Nbd7 {[%clk 0:03:00]} 9. e4 {[%clk 0:02:54]}  cxd4 {[%clk 0:02:58]} 10. Nxd4 {[%clk 0:02:54]}  Bb7 {[%clk 0:02:55]} 11. Re1 {[%clk 0:02:50]}  Nc5 {[%clk 0:02:40]} 12. e5 {[%clk 0:02:42]}  Nxb3 {[%clk 0:02:35]} 13. axb3 {[%clk 0:02:39]}  Nd5 {[%clk 0:02:34]} 14. Ne4 {[%clk 0:02:34]}  Be7 {[%clk 0:02:28]} 15. Qg4 {[%clk 0:02:31]}  Qb6 {[%clk 0:02:18]} 16. Qxg7 {[%clk 0:02:23]}  O-O-O {[%clk 0:02:15]} 17. Nf3 {[%clk 0:01:51]}  Rhg8 {[%clk 0:02:03]} 18. Qxf7 {[%clk 0:01:46]}  Rdf8 {[%clk 0:02:03]} 19. Qh5 {[%clk 0:01:36]}  Kb8 {[%clk 0:01:35]} 20. Bh6 {[%clk 0:01:35]}  Rf5 {[%clk 0:01:34]} 21. Qh3 {[%clk 0:01:30]}  Bc5 {[%clk 0:01:20]} 22. Nxc5 {[%clk 0:01:16]}  Qxc5 {[%clk 0:01:21]} 23. Rac1 {[%clk 0:01:17]}  Qb4 {[%clk 0:01:06]} 24. Red1 {[%clk 0:01:13]}  Nf4 {[%clk 0:01:02]} 25. Bxf4 {[%clk 0:01:12]}  Qxf4 {[%clk 0:01:02]} 26. Rc3 {[%clk 0:00:38]}  Bxf3 {[%clk 0:00:58]} 27. Rxf3 {[%clk 0:00:39]}  Qxf3 {[%clk 0:00:58]} 28. Rd8+ {[%clk 0:00:39]}  Rxd8 {[%clk 0:00:57]} 29. gxf3 {[%clk 0:00:40]}  Rd1+ {[%clk 0:00:57]} 30. Kg2 {[%clk 0:00:38]}  Rg5+ {[%clk 0:00:58]} 0-1


[Site "https://www.chess.com"]

[Event "Titled Tuesday Blitz November 07 Late 2023"]
[White "Eggleston, Thomas A"]
[Black "Sarkar, Justin"]
[WhiteFideId "412139"]
[BlackFideId "2010011"]
[WhiteElo "2369"]
[BlackElo "2239"]
[Result "0-1"]
[Round "7"]
[TimeControl "180+1"]
[Date "2023.11.07"]
[WhiteClock "0:00:00"]
[BlackClock "0:00:15"]
[Board "107"]

1. e4 {[%clk 0:03:00]}  c5 {[%clk 0:02:10]} 2. Nf3 {[%clk 0:02:59]}  e6 {[%clk 0:02:08]} 3. g3 {[%clk 0:02:53]}  Nc6 {[%clk 0:02:05]} 4. Bg2 {[%clk 0:02:51]}  Nf6 {[%clk 0:01:51]} 5. Qe2 {[%clk 0:02:50]}  d6 {[%clk 0:01:51]} 6. O-O {[%clk 0:02:50]}  Be7 {[%clk 0:01:51]} 7. Rd1 {[%clk 0:02:50]}  O-O {[%clk 0:01:48]} 8. c3 {[%clk 0:02:46]}  e5 {[%clk 0:01:44]} 9. h3 {[%clk 0:02:44]}  Re8 {[%clk 0:01:40]} 10. d4 {[%clk 0:02:43]}  exd4 {[%clk 0:01:23]} 11. cxd4 {[%clk 0:02:43]}  Bf8 {[%clk 0:01:23]} 12. dxc5 {[%clk 0:02:43]}  Nxe4 {[%clk 0:01:19]} 13. Be3 {[%clk 0:02:07]}  d5 {[%clk 0:01:16]} 14. Qc2 {[%clk 0:02:04]}  Nxg3 {[%clk 0:01:08]} 15. Nc3 {[%clk 0:02:00]}  Nf5 {[%clk 0:01:03]} 16. Rxd5 {[%clk 0:01:55]}  Nxe3 {[%clk 0:01:00]} 17. Rxd8 {[%clk 0:01:51]}  Nxc2 {[%clk 0:00:57]} 18. Rxe8 {[%clk 0:01:51]}  Nxa1 {[%clk 0:00:57]} 19. Ne1 {[%clk 0:00:46]}  Rb8 {[%clk 0:00:51]} 20. Bxc6 {[%clk 0:00:35]}  bxc6 {[%clk 0:00:51]} 21. Ne4 {[%clk 0:00:33]}  Ra8 {[%clk 0:00:38]} 22. Nd6 {[%clk 0:00:14]}  Bb7 {[%clk 0:00:38]} 23. Re2 {[%clk 0:00:12]}  Rb8 {[%clk 0:00:33]} 24. Rd2 {[%clk 0:00:10]}  Ba6 {[%clk 0:00:31]} 25. Rd1 {[%clk 0:00:04]}  Rxb2 {[%clk 0:00:25]} 26. Rxa1 {[%clk 0:00:04]}  g6 {[%clk 0:00:22]} 27. Rd1 {[%clk 0:00:03]}  Rxa2 {[%clk 0:00:21]} 28. Ne4 {[%clk 0:00:03]}  f5 {[%clk 0:00:18]} 29. Nd6 {[%clk 0:00:02]}  Ra5 {[%clk 0:00:17]} 30. Nf3 {[%clk 0:00:02]}  Rxc5 {[%clk 0:00:16]} 31. Ne5 {[%clk 0:00:00]}  Rxe5 {[%clk 0:00:15]} 0-1


[Site "https://www.chess.com"]

[Event "Titled Tuesday Blitz November 07 Late 2023"]
[White "Hoffmann, Asa"]
[Black "Chemin, Justo Reinaldo"]
[WhiteFideId "2001470"]
[BlackFideId "2101580"]
[WhiteElo "2368"]
[BlackElo "2207"]
[Result "1-0"]
[Round "7"]
[TimeControl "180+1"]
[Date "2023.11.07"]
[WhiteClock "0:00:37"]
[BlackClock "0:00:00"]
[Board "108"]

1. d4 {[%clk 0:02:53]}  d5 {[%clk 0:02:59]} 2. Bg5 {[%clk 0:02:52]}  c6 {[%clk 0:02:57]} 3. e3 {[%clk 0:02:52]}  Qb6 {[%clk 0:02:56]} 4. b3 {[%clk 0:02:51]}  Bf5 {[%clk 0:02:54]} 5. Bd3 {[%clk 0:02:51]}  Bxd3 {[%clk 0:02:54]} 6. Qxd3 {[%clk 0:02:51]}  e6 {[%clk 0:02:46]} 7. Nd2 {[%clk 0:02:50]}  c5 {[%clk 0:02:40]} 8. c3 {[%clk 0:02:49]}  Nc6 {[%clk 0:02:40]} 9. f4 {[%clk 0:02:49]}  Qa6 {[%clk 0:02:34]} 10. Qxa6 {[%clk 0:02:48]}  bxa6 {[%clk 0:02:34]} 11. Ngf3 {[%clk 0:02:47]}  h6 {[%clk 0:02:20]} 12. Bh4 {[%clk 0:02:46]}  Nf6 {[%clk 0:02:19]} 13. Ke2 {[%clk 0:02:45]}  Be7 {[%clk 0:02:13]} 14. Ne5 {[%clk 0:02:43]}  Rc8 {[%clk 0:02:11]} 15. Nxc6 {[%clk 0:02:35]}  Rxc6 {[%clk 0:02:10]} 16. Kd3 {[%clk 0:02:34]}  O-O {[%clk 0:01:57]} 17. h3 {[%clk 0:02:32]}  Rfc8 {[%clk 0:01:57]} 18. Rac1 {[%clk 0:02:30]}  c4+ {[%clk 0:01:43]} 19. bxc4 {[%clk 0:02:26]}  dxc4+ {[%clk 0:01:43]} 20. Kc2 {[%clk 0:02:25]}  g5 {[%clk 0:01:25]} 21. fxg5 {[%clk 0:02:18]}  Nd5 {[%clk 0:01:25]} 22. Rhe1 {[%clk 0:02:16]}  hxg5 {[%clk 0:01:24]} 23. Bg3 {[%clk 0:02:13]}  f5 {[%clk 0:01:23]} 24. e4 {[%clk 0:02:12]}  fxe4 {[%clk 0:01:07]} 25. Rxe4 {[%clk 0:02:03]}  Nf6 {[%clk 0:00:50]} 26. Re5 {[%clk 0:02:02]}  Nd5 {[%clk 0:00:49]} 27. Ne4 {[%clk 0:02:00]}  Ne3+ {[%clk 0:00:46]} 28. Kd2 {[%clk 0:01:56]}  Nf5 {[%clk 0:00:44]} 29. Bh2 {[%clk 0:01:42]}  Rb6 {[%clk 0:00:43]} 30. Rc2 {[%clk 0:01:40]}  Rcc6 {[%clk 0:00:36]} 31. Ke2 {[%clk 0:01:38]}  Rb1 {[%clk 0:00:35]} 32. d5 {[%clk 0:01:36]}  Rcb6 {[%clk 0:00:22]} 33. dxe6 {[%clk 0:01:33]}  Nh4 {[%clk 0:00:22]} 34. g3 {[%clk 0:01:09]}  Rh1 {[%clk 0:00:20]} 35. Nf2 {[%clk 0:00:51]}  Rxh2 {[%clk 0:00:05]} 36. gxh4 {[%clk 0:00:51]}  Bc5 {[%clk 0:00:05]} 37. Rxg5+ {[%clk 0:00:49]}  Kf8 {[%clk 0:00:04]} 38. Rf5+ {[%clk 0:00:46]}  Ke7 {[%clk 0:00:02]} 39. Rxc5 {[%clk 0:00:46]}  Rxe6+ {[%clk 0:00:03]} 40. Kf1 {[%clk 0:00:43]}  Rf6 {[%clk 0:00:03]} 41. h5 {[%clk 0:00:38]}  Rxh3 {[%clk 0:00:02]} 42. Kg2 {[%clk 0:00:38]}  Rh4 {[%clk 0:00:00]} 43. Re2+ {[%clk 0:00:37]} 1-0


[Site "https://www.chess.com"]

[Event "Titled Tuesday Blitz November 07 Late 2023"]
[White "Dwilewicz, Katarzyna"]
[Black "Vila Dupla, Aurelio"]
[WhiteFideId "1148486"]
[BlackFideId "2203383"]
[WhiteElo "2352"]
[BlackElo "2189"]
[Result "1-0"]
[Round "7"]
[TimeControl "180+1"]
[Date "2023.11.07"]
[WhiteClock "0:01:14"]
[BlackClock "0:00:00"]
[Board "110"]

1. e4 {[%clk 0:02:55]}  c5 {[%clk 0:02:59]} 2. c3 {[%clk 0:02:52]}  d5 {[%clk 0:02:58]} 3. exd5 {[%clk 0:02:52]}  Qxd5 {[%clk 0:02:59]} 4. d4 {[%clk 0:02:52]}  Nf6 {[%clk 0:02:58]} 5. Nf3 {[%clk 0:02:53]}  Bg4 {[%clk 0:02:58]} 6. Na3 {[%clk 0:02:53]}  e6 {[%clk 0:02:58]} 7. Nb5 {[%clk 0:02:52]}  Na6 {[%clk 0:02:46]} 8. Be2 {[%clk 0:02:47]}  Be7 {[%clk 0:02:36]} 9. h3 {[%clk 0:02:43]}  Bh5 {[%clk 0:02:35]} 10. O-O {[%clk 0:02:42]}  O-O {[%clk 0:02:34]} 11. c4 {[%clk 0:02:35]}  Qd8 {[%clk 0:02:28]} 12. Bf4 {[%clk 0:02:32]}  cxd4 {[%clk 0:02:19]} 13. Nfxd4 {[%clk 0:02:29]}  Bxe2 {[%clk 0:02:16]} 14. Qxe2 {[%clk 0:02:27]}  Qb6 {[%clk 0:02:01]} 15. Rfd1 {[%clk 0:02:24]}  Rfd8 {[%clk 0:01:56]} 16. Nf5 {[%clk 0:02:18]}  Bf8 {[%clk 0:01:31]} 17. Nfd6 {[%clk 0:02:15]}  Nc5 {[%clk 0:01:18]} 18. b4 {[%clk 0:02:10]}  Ncd7 {[%clk 0:01:13]} 19. c5 {[%clk 0:02:09]}  Qc6 {[%clk 0:01:12]} 20. Rac1 {[%clk 0:02:01]}  a6 {[%clk 0:01:08]} 21. Nd4 {[%clk 0:02:00]}  Qa4 {[%clk 0:01:08]} 22. Nxe6 {[%clk 0:01:57]}  Bxd6 {[%clk 0:00:54]} 23. Nxd8 {[%clk 0:01:32]}  Bxf4 {[%clk 0:00:52]} 24. Qe7 {[%clk 0:01:26]}  Bxc1 {[%clk 0:00:17]} 25. Qxf7+ {[%clk 0:01:23]}  Kh8 {[%clk 0:00:00]} 26. Rxd7 {[%clk 0:01:14]} 1-0


[Site "https://www.chess.com"]

[Event "Titled Tuesday Blitz November 07 Late 2023"]
[White "Modric, Nesa"]
[Black "Marcziter, Dmitrii"]
[WhiteFideId "922579"]
[BlackFideId "13900765"]
[WhiteElo "2189"]
[BlackElo "2343"]
[Result "0-1"]
[Round "7"]
[TimeControl "180+1"]
[Date "2023.11.07"]
[WhiteClock "0:00:00"]
[BlackClock "0:01:20"]
[Board "111"]

1. e4 {[%clk 0:03:00]}  c5 {[%clk 0:02:58]} 2. c3 {[%clk 0:03:00]}  d5 {[%clk 0:02:55]} 3. exd5 {[%clk 0:03:00]}  Qxd5 {[%clk 0:02:56]} 4. Nf3 {[%clk 0:03:01]}  Nf6 {[%clk 0:02:54]} 5. Na3 {[%clk 0:03:01]}  a6 {[%clk 0:02:54]} 6. Nc4 {[%clk 0:03:01]}  Qd8 {[%clk 0:02:54]} 7. Be2 {[%clk 0:03:00]}  Bg4 {[%clk 0:02:51]} 8. Nce5 {[%clk 0:02:41]}  Bc8 {[%clk 0:02:46]} 9. O-O {[%clk 0:02:33]}  Nbd7 {[%clk 0:02:44]} 10. d4 {[%clk 0:02:02]}  cxd4 {[%clk 0:02:39]} 11. Qxd4 {[%clk 0:01:50]}  e6 {[%clk 0:02:32]} 12. Rd1 {[%clk 0:01:37]}  Bc5 {[%clk 0:02:29]} 13. Qc4 {[%clk 0:01:24]}  O-O {[%clk 0:02:21]} 14. Nxd7 {[%clk 0:01:13]}  Nxd7 {[%clk 0:02:18]} 15. Rxd7 {[%clk 0:01:12]}  Bxf2+ {[%clk 0:02:09]} 16. Kxf2 {[%clk 0:01:12]}  Bxd7 {[%clk 0:02:09]} 17. Be3 {[%clk 0:00:31]}  Bb5 {[%clk 0:02:08]} 18. Qg4 {[%clk 0:00:31]}  Bxe2 {[%clk 0:02:07]} 19. Kxe2 {[%clk 0:00:31]}  Kh8 {[%clk 0:01:51]} 20. Rd1 {[%clk 0:00:26]}  Qa5 {[%clk 0:01:50]} 21. Bd4 {[%clk 0:00:23]}  f6 {[%clk 0:01:47]} 22. a3 {[%clk 0:00:16]}  e5 {[%clk 0:01:47]} 23. Be3 {[%clk 0:00:13]}  Qb5+ {[%clk 0:01:46]} 24. Kf2 {[%clk 0:00:08]}  Qxb2+ {[%clk 0:01:45]} 25. Rd2 {[%clk 0:00:08]}  Qxc3 {[%clk 0:01:45]} 26. Rd7 {[%clk 0:00:08]}  Qc2+ {[%clk 0:01:40]} 27. Kf1 {[%clk 0:00:07]}  Rg8 {[%clk 0:01:33]} 28. Nh4 {[%clk 0:00:05]}  Rad8 {[%clk 0:01:21]} 29. Rxd8 {[%clk 0:00:04]}  Rxd8 {[%clk 0:01:21]} 30. Nf5 {[%clk 0:00:00]}  Rd1+ {[%clk 0:01:20]} 0-1


[Site "https://www.chess.com"]

[Event "Titled Tuesday Blitz November 07 Late 2023"]
[White "Oliveira, Tiago Batista"]
[Black "Jarocka, Liwia"]
[WhiteFideId "2108291"]
[BlackFideId "21807558"]
[WhiteElo "2069"]
[BlackElo "2343"]
[Result "0-1"]
[Round "7"]
[TimeControl "180+1"]
[Date "2023.11.07"]
[WhiteClock "0:00:00"]
[BlackClock "0:00:50"]
[Board "112"]

1. d4 {[%clk 0:02:56]}  g6 {[%clk 0:02:58]} 2. c4 {[%clk 0:02:51]}  Bg7 {[%clk 0:02:59]} 3. Nc3 {[%clk 0:02:47]}  d6 {[%clk 0:03:00]} 4. e4 {[%clk 0:02:45]}  Nf6 {[%clk 0:02:59]} 5. Be2 {[%clk 0:02:44]}  O-O {[%clk 0:02:56]} 6. Be3 {[%clk 0:02:44]}  e5 {[%clk 0:02:51]} 7. Nf3 {[%clk 0:02:38]}  Nbd7 {[%clk 0:02:46]} 8. dxe5 {[%clk 0:02:37]}  dxe5 {[%clk 0:02:43]} 9. O-O {[%clk 0:02:22]}  c6 {[%clk 0:02:41]} 10. h3 {[%clk 0:02:21]}  Qc7 {[%clk 0:02:40]} 11. Qc2 {[%clk 0:02:21]}  a5 {[%clk 0:02:36]} 12. a3 {[%clk 0:02:21]}  Re8 {[%clk 0:02:36]} 13. b4 {[%clk 0:02:19]}  Nh5 {[%clk 0:02:33]} 14. Rfd1 {[%clk 0:02:15]}  Nf4 {[%clk 0:02:31]} 15. Bf1 {[%clk 0:02:15]}  Nf8 {[%clk 0:02:24]} 16. c5 {[%clk 0:01:57]}  N8e6 {[%clk 0:02:10]} 17. Bc4 {[%clk 0:01:56]}  h5 {[%clk 0:01:59]} 18. Rab1 {[%clk 0:01:09]}  axb4 {[%clk 0:01:53]} 19. axb4 {[%clk 0:01:07]}  Qe7 {[%clk 0:01:47]} 20. Ne2 {[%clk 0:00:55]}  Qf6 {[%clk 0:01:39]} 21. Nxf4 {[%clk 0:00:38]}  exf4 {[%clk 0:01:34]} 22. Rd6 {[%clk 0:00:22]}  fxe3 {[%clk 0:01:31]} 23. e5 {[%clk 0:00:19]}  Qf4 {[%clk 0:01:26]} 24. fxe3 {[%clk 0:00:13]}  Qxe3+ {[%clk 0:01:26]} 25. Kh1 {[%clk 0:00:14]}  Qh6 {[%clk 0:01:10]} 26. Rf1 {[%clk 0:00:13]}  Bf8 {[%clk 0:01:03]} 27. Rd3 {[%clk 0:00:10]}  Nf4 {[%clk 0:00:59]} 28. Rd2 {[%clk 0:00:09]}  Be6 {[%clk 0:00:59]} 29. Bxe6 {[%clk 0:00:08]}  Nxe6 {[%clk 0:00:59]} 30. Rd7 {[%clk 0:00:08]}  Re7 {[%clk 0:00:58]} 31. Rxe7 {[%clk 0:00:07]}  Bxe7 {[%clk 0:00:59]} 32. Qd1 {[%clk 0:00:05]}  Rd8 {[%clk 0:00:58]} 33. Qe1 {[%clk 0:00:06]}  Qg7 {[%clk 0:00:55]} 34. Qe4 {[%clk 0:00:04]}  Rd5 {[%clk 0:00:53]} 35. Ra1 {[%clk 0:00:02]}  Kh7 {[%clk 0:00:51]} 36. Ra8 {[%clk 0:00:00]}  Ng5 {[%clk 0:00:50]} 0-1


[Site "https://www.chess.com"]

[Event "Titled Tuesday Blitz November 07 Late 2023"]
[White "Szente Varga, Fruzsina"]
[Black "Martins, Vinicius Tine"]
[WhiteFideId "712264"]
[BlackFideId "2112884"]
[WhiteElo "2309"]
[BlackElo "2386"]
[Result "0-1"]
[Round "7"]
[TimeControl "180+1"]
[Date "2023.11.07"]
[WhiteClock "0:01:37"]
[BlackClock "0:00:41"]
[Board "114"]

1. e4 {[%clk 0:02:53]}  d6 {[%clk 0:02:51]} 2. d4 {[%clk 0:02:53]}  Nf6 {[%clk 0:02:46]} 3. Nc3 {[%clk 0:02:52]}  g6 {[%clk 0:02:42]} 4. Be3 {[%clk 0:02:52]}  Bg7 {[%clk 0:02:38]} 5. f3 {[%clk 0:02:51]}  O-O {[%clk 0:02:21]} 6. Qd2 {[%clk 0:02:51]}  e5 {[%clk 0:02:00]} 7. Nge2 {[%clk 0:02:48]}  Nc6 {[%clk 0:01:55]} 8. O-O-O {[%clk 0:02:47]}  exd4 {[%clk 0:01:53]} 9. Nxd4 {[%clk 0:02:48]}  Nxd4 {[%clk 0:01:52]} 10. Bxd4 {[%clk 0:02:49]}  Be6 {[%clk 0:01:52]} 11. h4 {[%clk 0:02:48]}  h5 {[%clk 0:01:44]} 12. g4 {[%clk 0:02:46]}  hxg4 {[%clk 0:01:43]} 13. h5 {[%clk 0:02:46]}  Nxh5 {[%clk 0:01:42]} 14. fxg4 {[%clk 0:02:47]}  Bxg4 {[%clk 0:01:41]} 15. Be2 {[%clk 0:02:47]}  Bxe2 {[%clk 0:01:39]} 16. Qxe2 {[%clk 0:02:47]}  Bxd4 {[%clk 0:01:37]} 17. Rxd4 {[%clk 0:02:48]}  Ng3 {[%clk 0:01:25]} 18. Qf3 {[%clk 0:02:21]}  Nxh1 {[%clk 0:01:22]} 19. Qxh1 {[%clk 0:02:19]}  Qg5+ {[%clk 0:01:21]} 20. Kb1 {[%clk 0:02:14]}  Kg7 {[%clk 0:01:20]} 21. Rd5 {[%clk 0:02:11]}  Rh8 {[%clk 0:01:10]} 22. Qf3 {[%clk 0:02:08]}  Qh4 {[%clk 0:01:05]} 23. a3 {[%clk 0:02:05]}  Qh1+ {[%clk 0:01:04]} 24. Qxh1 {[%clk 0:01:55]}  Rxh1+ {[%clk 0:01:05]} 25. Ka2 {[%clk 0:01:55]}  Re8 {[%clk 0:01:04]} 26. Rd4 {[%clk 0:01:55]}  Rh4 {[%clk 0:00:55]} 27. Rb4 {[%clk 0:01:52]}  b6 {[%clk 0:00:54]} 28. Ra4 {[%clk 0:01:53]}  a5 {[%clk 0:00:53]} 29. Rc4 {[%clk 0:01:51]}  c5 {[%clk 0:00:52]} 30. b4 {[%clk 0:01:48]}  axb4 {[%clk 0:00:47]} 31. axb4 {[%clk 0:01:49]}  f5 {[%clk 0:00:45]} 32. bxc5 {[%clk 0:01:44]}  dxc5 {[%clk 0:00:44]} 33. Kb3 {[%clk 0:01:43]}  Rexe4 {[%clk 0:00:43]} 34. Nxe4 {[%clk 0:01:42]}  Rxe4 {[%clk 0:00:42]} 35. Rc3 {[%clk 0:01:43]}  Rb4+ {[%clk 0:00:42]} 36. Ka2 {[%clk 0:01:42]}  Kf6 {[%clk 0:00:43]} 37. Rd3 {[%clk 0:01:37]}  f4 {[%clk 0:00:41]} 0-1


[Site "https://www.chess.com"]

[Event "Titled Tuesday Blitz November 07 Late 2023"]
[White "Ward, Ieuan C"]
[Black "Bullen, Alex"]
[WhiteFideId "406627"]
[BlackFideId "1801627"]
[WhiteElo "2333"]
[BlackElo "2224"]
[Result "1-0"]
[Round "7"]
[TimeControl "180+1"]
[Date "2023.11.07"]
[WhiteClock "0:00:39"]
[BlackClock "0:00:00"]
[Board "115"]

1. e4 {[%clk 0:03:00]}  e6 {[%clk 0:02:57]} 2. d4 {[%clk 0:02:59]}  d5 {[%clk 0:02:57]} 3. e5 {[%clk 0:03:00]}  c5 {[%clk 0:02:56]} 4. c3 {[%clk 0:03:00]}  Nc6 {[%clk 0:02:55]} 5. Nf3 {[%clk 0:03:01]}  Qb6 {[%clk 0:02:53]} 6. Be2 {[%clk 0:03:01]}  f6 {[%clk 0:02:50]} 7. O-O {[%clk 0:02:56]}  fxe5 {[%clk 0:02:47]} 8. dxe5 {[%clk 0:02:56]}  Nge7 {[%clk 0:02:42]} 9. c4 {[%clk 0:02:55]}  d4 {[%clk 0:02:40]} 10. Re1 {[%clk 0:02:50]}  Ng6 {[%clk 0:02:40]} 11. Bd3 {[%clk 0:02:49]}  Be7 {[%clk 0:02:24]} 12. Bxg6+ {[%clk 0:02:43]}  hxg6 {[%clk 0:02:25]} 13. Qd3 {[%clk 0:02:42]}  Bd7 {[%clk 0:02:15]} 14. Qxg6+ {[%clk 0:02:41]}  Kd8 {[%clk 0:02:16]} 15. Nbd2 {[%clk 0:02:32]}  Kc7 {[%clk 0:02:14]} 16. Ne4 {[%clk 0:02:25]}  Nb4 {[%clk 0:02:10]} 17. Neg5 {[%clk 0:02:15]}  Bxg5 {[%clk 0:01:46]} 18. Bxg5 {[%clk 0:02:12]}  Raf8 {[%clk 0:01:38]} 19. Nd2 {[%clk 0:02:00]}  Qc6 {[%clk 0:01:29]} 20. a3 {[%clk 0:01:56]}  Na6 {[%clk 0:01:08]} 21. Qe4 {[%clk 0:01:45]}  Qxe4 {[%clk 0:01:02]} 22. Nxe4 {[%clk 0:01:46]}  b6 {[%clk 0:00:56]} 23. b4 {[%clk 0:01:27]}  Rf5 {[%clk 0:00:52]} 24. h4 {[%clk 0:01:18]}  Bc6 {[%clk 0:00:48]} 25. Nd6 {[%clk 0:01:15]}  Rxg5 {[%clk 0:00:24]} 26. hxg5 {[%clk 0:01:16]}  Nb8 {[%clk 0:00:18]} 27. bxc5 {[%clk 0:01:11]}  bxc5 {[%clk 0:00:18]} 28. Rab1 {[%clk 0:01:01]}  Nd7 {[%clk 0:00:17]} 29. f4 {[%clk 0:00:59]}  Rh4 {[%clk 0:00:16]} 30. Rf1 {[%clk 0:00:56]}  Rg4 {[%clk 0:00:15]} 31. Rb2 {[%clk 0:00:55]}  Nb6 {[%clk 0:00:15]} 32. Kh2 {[%clk 0:00:50]}  Na4 {[%clk 0:00:14]} 33. Rbf2 {[%clk 0:00:48]}  Nc3 {[%clk 0:00:14]} 34. Kh3 {[%clk 0:00:45]}  Bxg2+ {[%clk 0:00:08]} 35. Rxg2 {[%clk 0:00:38]}  Rxg2 {[%clk 0:00:00]} 36. Kxg2 {[%clk 0:00:39]} 1-0


[Site "https://www.chess.com"]